[Event "Titled Tuesday Blitz July 11 Late 2023"]
[White "kripri"]
[Black "Pulpan, Jakub"]
[BlackFideId "302759"]
[WhiteElo "2328"]
[BlackElo "2669"]
[Result "1-0"]
[Round "3"]
[TimeControl "180+2"]
[Date "2023.07.11"]
[WhiteClock "0:00:12"]
[BlackClock "0:00:57"]
[Board "152"]

1. e4 {[%clk 0:03:00]}  Nc6 {[%clk 0:02:53]} 2. d4 {[%clk 0:03:00]}  d5 {[%clk 0:02:53]} 3. e5 {[%clk 0:03:00]}  Bf5 {[%clk 0:02:52]} 4. c3 {[%clk 0:02:58]}  f6 {[%clk 0:02:52]} 5. f4 {[%clk 0:02:55]}  Qd7 {[%clk 0:02:51]} 6. Nf3 {[%clk 0:02:55]}  e6 {[%clk 0:02:51]} 7. Be2 {[%clk 0:02:55]}  Nge7 {[%clk 0:02:48]} 8. O-O {[%clk 0:02:55]}  h6 {[%clk 0:02:44]} 9. Be3 {[%clk 0:02:45]}  fxe5 {[%clk 0:02:34]} 10. fxe5 {[%clk 0:02:38]}  g5 {[%clk 0:02:33]} 11. Nbd2 {[%clk 0:02:24]}  Bg6 {[%clk 0:02:30]} 12. h4 {[%clk 0:02:21]}  Nf5 {[%clk 0:02:25]} 13. Bf2 {[%clk 0:02:21]}  g4 {[%clk 0:02:24]} 14. Nh2 {[%clk 0:01:51]}  g3 {[%clk 0:02:16]} 15. Bxg3 {[%clk 0:01:14]}  Nxg3 {[%clk 0:02:16]} 16. Rf6 {[%clk 0:01:13]}  Nxe2+ {[%clk 0:01:56]} 17. Qxe2 {[%clk 0:01:13]}  Rg8 {[%clk 0:01:57]} 18. Qg4 {[%clk 0:00:59]}  Bf7 {[%clk 0:01:48]} 19. Qf4 {[%clk 0:00:54]}  Bg7 {[%clk 0:01:44]} 20. Ng4 {[%clk 0:00:52]}  h5 {[%clk 0:01:41]} 21. Rf1 {[%clk 0:00:45]}  Rf8 {[%clk 0:01:34]} 22. Qg5 {[%clk 0:00:38]}  Bh8 {[%clk 0:01:26]} 23. Rxf7 {[%clk 0:00:30]}  Qxf7 {[%clk 0:01:17]} 24. Rxf7 {[%clk 0:00:29]}  Rxf7 {[%clk 0:01:18]} 25. Qg8+ {[%clk 0:00:23]}  Rf8 {[%clk 0:01:16]} 26. Qxe6+ {[%clk 0:00:23]}  Kd8 {[%clk 0:01:16]} 27. Nf6 {[%clk 0:00:17]}  Bxf6 {[%clk 0:01:10]} 28. exf6 {[%clk 0:00:18]}  Re8 {[%clk 0:01:04]} 29. Qxd5+ {[%clk 0:00:18]}  Kc8 {[%clk 0:01:05]} 30. f7 {[%clk 0:00:18]}  Rf8 {[%clk 0:01:05]} 31. Ne4 {[%clk 0:00:16]}  Nd8 {[%clk 0:01:00]} 32. Ng5 {[%clk 0:00:16]}  a5 {[%clk 0:00:57]} 33. Qf5+ {[%clk 0:00:16]}  Kb8 {[%clk 0:00:57]} 34. Qd7 {[%clk 0:00:16]}  Ra6 {[%clk 0:00:56]} 35. Qe7 {[%clk 0:00:13]}  Rxf7 {[%clk 0:00:53]} 36. Qxd8+ {[%clk 0:00:13]}  Ka7 {[%clk 0:00:53]} 37. Nxf7 {[%clk 0:00:14]}  a4 {[%clk 0:00:54]} 38. Ne5 {[%clk 0:00:14]}  a3 {[%clk 0:00:55]} 39. b3 {[%clk 0:00:14]}  Rb6 {[%clk 0:00:54]} 40. Qxc7 {[%clk 0:00:14]}  Rxb3 {[%clk 0:00:55]} 41. axb3 {[%clk 0:00:14]}  Ka6 {[%clk 0:00:56]} 42. Qd7 {[%clk 0:00:12]}  Ka5 {[%clk 0:00:57]} 1-0


[Site "https://www.chess.com"]

[Event "Titled Tuesday Blitz July 11 Late 2023"]
[White "Bobkov, Vadim"]
[Black "Manon-og, Ramon Jr."]
[WhiteFideId "34110876"]
[BlackFideId "5200776"]
[WhiteElo "2535"]
[BlackElo "2299"]
[Result "1-0"]
[Round "3"]
[TimeControl "180+2"]
[Date "2023.07.11"]
[WhiteClock "0:00:05"]
[BlackClock "0:00:26"]
[Board "158"]

1. d4 {[%clk 0:03:00]}  Nf6 {[%clk 0:02:59]} 2. c4 {[%clk 0:02:59]}  g6 {[%clk 0:02:57]} 3. Nc3 {[%clk 0:02:58]}  d5 {[%clk 0:02:58]} 4. Bf4 {[%clk 0:02:52]}  Bg7 {[%clk 0:02:57]} 5. e3 {[%clk 0:02:52]}  O-O {[%clk 0:02:56]} 6. cxd5 {[%clk 0:02:51]}  Nxd5 {[%clk 0:02:44]} 7. Nxd5 {[%clk 0:02:52]}  Qxd5 {[%clk 0:02:45]} 8. Bxc7 {[%clk 0:02:51]}  e5 {[%clk 0:02:42]} 9. dxe5 {[%clk 0:02:47]}  Qe4 {[%clk 0:02:34]} 10. Nf3 {[%clk 0:01:59]}  Bg4 {[%clk 0:02:25]} 11. Be2 {[%clk 0:01:58]}  Nc6 {[%clk 0:02:20]} 12. O-O {[%clk 0:01:56]}  Nxe5 {[%clk 0:02:14]} 13. Nxe5 {[%clk 0:01:27]}  Bxe2 {[%clk 0:02:14]} 14. Qxe2 {[%clk 0:01:26]}  Bxe5 {[%clk 0:02:14]} 15. Bxe5 {[%clk 0:01:22]}  Qxe5 {[%clk 0:02:15]} 16. h3 {[%clk 0:01:13]}  Rfd8 {[%clk 0:02:14]} 17. Rfd1 {[%clk 0:01:09]}  Rac8 {[%clk 0:02:13]} 18. Rac1 {[%clk 0:01:02]}  Qa5 {[%clk 0:01:50]} 19. Rxc8 {[%clk 0:00:52]}  Rxc8 {[%clk 0:01:49]} 20. a3 {[%clk 0:00:52]}  Qa4 {[%clk 0:01:48]} 21. Rd2 {[%clk 0:00:39]}  Rc1+ {[%clk 0:01:39]} 22. Kh2 {[%clk 0:00:39]}  Qe4 {[%clk 0:01:36]} 23. Qf3 {[%clk 0:00:35]}  Qxf3 {[%clk 0:01:21]} 24. gxf3 {[%clk 0:00:35]}  Rc7 {[%clk 0:01:22]} 25. Kg3 {[%clk 0:00:33]}  Kg7 {[%clk 0:01:22]} 26. f4 {[%clk 0:00:32]}  Kf6 {[%clk 0:01:22]} 27. e4 {[%clk 0:00:32]}  Ke6 {[%clk 0:01:22]} 28. Kf3 {[%clk 0:00:32]}  h5 {[%clk 0:01:19]} 29. Ke3 {[%clk 0:00:32]}  a5 {[%clk 0:01:09]} 30. Rd5 {[%clk 0:00:27]}  Rc2 {[%clk 0:01:08]} 31. Rb5 {[%clk 0:00:24]}  a4 {[%clk 0:01:02]} 32. Rxb7 {[%clk 0:00:22]}  Rc1 {[%clk 0:01:02]} 33. Kf3 {[%clk 0:00:20]}  Rh1 {[%clk 0:00:58]} 34. Kg2 {[%clk 0:00:19]}  Rb1 {[%clk 0:00:58]} 35. Rb4 {[%clk 0:00:18]}  Kf6 {[%clk 0:00:53]} 36. Kf3 {[%clk 0:00:15]}  Rh1 {[%clk 0:00:52]} 37. Kg2 {[%clk 0:00:15]}  Rb1 {[%clk 0:00:52]} 38. Rb6+ {[%clk 0:00:15]}  Ke7 {[%clk 0:00:52]} 39. f5 {[%clk 0:00:13]}  gxf5 {[%clk 0:00:48]} 40. exf5 {[%clk 0:00:14]}  h4 {[%clk 0:00:47]} 41. Kf3 {[%clk 0:00:13]}  Rh1 {[%clk 0:00:44]} 42. Kg4 {[%clk 0:00:13]}  Rf1 {[%clk 0:00:44]} 43. f4 {[%clk 0:00:12]}  Rf2 {[%clk 0:00:43]} 44. f6+ {[%clk 0:00:09]}  Kd7 {[%clk 0:00:42]} 45. Rb4 {[%clk 0:00:09]}  Ke6 {[%clk 0:00:42]} 46. Rb6+ {[%clk 0:00:09]}  Kd7 {[%clk 0:00:42]} 47. Kxh4 {[%clk 0:00:07]}  Rxf4+ {[%clk 0:00:42]} 48. Kg5 {[%clk 0:00:08]}  Rf2 {[%clk 0:00:39]} 49. h4 {[%clk 0:00:08]}  Rg2+ {[%clk 0:00:40]} 50. Kh6 {[%clk 0:00:07]}  Kc7 {[%clk 0:00:40]} 51. Ra6 {[%clk 0:00:06]}  Kb7 {[%clk 0:00:40]} 52. Rxa4 {[%clk 0:00:05]}  Rg6+ {[%clk 0:00:40]} 53. Kh7 {[%clk 0:00:05]}  Rxf6 {[%clk 0:00:41]} 54. Rb4+ {[%clk 0:00:05]}  Kc7 {[%clk 0:00:41]} 55. h5 {[%clk 0:00:05]}  Rf1 {[%clk 0:00:39]} 56. h6 {[%clk 0:00:06]}  f5 {[%clk 0:00:40]} 57. Kg7 {[%clk 0:00:05]}  Rh1 {[%clk 0:00:40]} 58. h7 {[%clk 0:00:05]}  Rg1+ {[%clk 0:00:41]} 59. Kf6 {[%clk 0:00:03]}  Rh1 {[%clk 0:00:41]} 60. Kg6 {[%clk 0:00:03]}  Kc6 {[%clk 0:00:35]} 61. Kg7 {[%clk 0:00:02]}  Rg1+ {[%clk 0:00:33]} 62. Kf8 {[%clk 0:00:02]}  Rh1 {[%clk 0:00:33]} 63. Kg8 {[%clk 0:00:03]}  Rg1+ {[%clk 0:00:33]} 64. Kf8 {[%clk 0:00:03]}  Rh1 {[%clk 0:00:33]} 65. Kg7 {[%clk 0:00:03]}  Rg1+ {[%clk 0:00:33]} 66. Kh6 {[%clk 0:00:03]}  Rh1+ {[%clk 0:00:33]} 67. Kg6 {[%clk 0:00:03]}  Rg1+ {[%clk 0:00:33]} 68. Kxf5 {[%clk 0:00:03]}  Rh1 {[%clk 0:00:31]} 69. Kg6 {[%clk 0:00:04]}  Rg1+ {[%clk 0:00:30]} 70. Kf6 {[%clk 0:00:04]}  Rh1 {[%clk 0:00:30]} 71. Kg6 {[%clk 0:00:04]}  Rg1+ {[%clk 0:00:30]} 72. Kh5 {[%clk 0:00:04]}  Rh1+ {[%clk 0:00:29]} 73. Rh4 {[%clk 0:00:05]}  Rg1 {[%clk 0:00:26]} 74. h8=Q {[%clk 0:00:05]} 1-0


[Site "https://www.chess.com"]

[Event "Titled Tuesday Blitz July 11 Late 2023"]
[White "Hoffmann, Asa"]
[Black "Chen, Max"]
[WhiteFideId "2001470"]
[BlackFideId "2622440"]
[WhiteElo "2294"]
[BlackElo "2531"]
[Result "0-1"]
[Round "3"]
[TimeControl "180+2"]
[Date "2023.07.11"]
[WhiteClock "0:00:38"]
[BlackClock "0:01:09"]
[Board "160"]

1. d4 {[%clk 0:02:58]}  Nf6 {[%clk 0:02:57]} 2. Bg5 {[%clk 0:02:57]}  d5 {[%clk 0:02:54]} 3. Nd2 {[%clk 0:02:56]}  Bf5 {[%clk 0:02:48]} 4. e3 {[%clk 0:02:51]}  e6 {[%clk 0:02:47]} 5. f4 {[%clk 0:02:48]}  h6 {[%clk 0:02:46]} 6. Bh4 {[%clk 0:02:48]}  Be7 {[%clk 0:02:44]} 7. Ngf3 {[%clk 0:02:48]}  Nbd7 {[%clk 0:02:44]} 8. Be2 {[%clk 0:02:43]}  O-O {[%clk 0:02:42]} 9. O-O {[%clk 0:02:43]}  c5 {[%clk 0:02:34]} 10. c3 {[%clk 0:02:42]}  Ng4 {[%clk 0:02:23]} 11. Bf2 {[%clk 0:02:38]}  Nxf2 {[%clk 0:02:21]} 12. Rxf2 {[%clk 0:02:36]}  Nf6 {[%clk 0:02:21]} 13. h3 {[%clk 0:02:12]}  Ne4 {[%clk 0:02:19]} 14. Nxe4 {[%clk 0:02:08]}  Bxe4 {[%clk 0:02:19]} 15. Bd3 {[%clk 0:02:07]}  Rc8 {[%clk 0:02:08]} 16. Bxe4 {[%clk 0:02:05]}  dxe4 {[%clk 0:02:08]} 17. Nd2 {[%clk 0:02:01]}  f5 {[%clk 0:02:08]} 18. Qb3 {[%clk 0:02:01]}  Qb6 {[%clk 0:02:07]} 19. Qxb6 {[%clk 0:01:57]}  axb6 {[%clk 0:02:08]} 20. Rc1 {[%clk 0:01:52]}  Bf6 {[%clk 0:02:00]} 21. Nc4 {[%clk 0:01:50]}  cxd4 {[%clk 0:01:44]} 22. Nxb6 {[%clk 0:01:34]}  dxe3 {[%clk 0:01:33]} 23. Re2 {[%clk 0:01:34]}  Rc7 {[%clk 0:01:32]} 24. Rxe3 {[%clk 0:01:31]}  Bd4 {[%clk 0:01:32]} 25. cxd4 {[%clk 0:01:24]}  Rxc1+ {[%clk 0:01:33]} 26. Kh2 {[%clk 0:01:24]}  Rc6 {[%clk 0:01:29]} 27. Nd7 {[%clk 0:01:20]}  Rd8 {[%clk 0:01:29]} 28. Ne5 {[%clk 0:01:20]}  Rc2 {[%clk 0:01:28]} 29. Rb3 {[%clk 0:01:19]}  Rxd4 {[%clk 0:01:27]} 30. Rxb7 {[%clk 0:01:18]}  Rdd2 {[%clk 0:01:28]} 31. Kg3 {[%clk 0:01:06]}  Rxg2+ {[%clk 0:01:27]} 32. Kh4 {[%clk 0:01:06]}  Rh2 {[%clk 0:01:13]} 33. a4 {[%clk 0:01:01]}  Rcg2 {[%clk 0:01:12]} 34. a5 {[%clk 0:00:53]}  e3 {[%clk 0:01:09]} 35. a6 {[%clk 0:00:51]}  e2 {[%clk 0:01:09]} 36. Nf3 {[%clk 0:00:47]}  Rg4+ {[%clk 0:01:08]} 37. Kh5 {[%clk 0:00:38]}  Rxh3+ {[%clk 0:01:09]} 0-1


[Site "https://www.chess.com"]

[Event "Titled Tuesday Blitz July 11 Late 2023"]
[White "Papayan, Oleg"]
[Black "Al Mukhaini, Shima"]
[WhiteFideId "4193911"]
[BlackFideId "22005854"]
[WhiteElo "2504"]
[BlackElo "2293"]
[Result "1/2-1/2"]
[Round "3"]
[TimeControl "180+2"]
[Date "2023.07.11"]
[WhiteClock "0:00:13"]
[BlackClock "0:00:18"]
[Board "161"]

1. e4 {[%clk 0:03:00]}  d5 {[%clk 0:02:59]} 2. exd5 {[%clk 0:02:59]}  Nf6 {[%clk 0:03:00]} 3. Nf3 {[%clk 0:02:58]}  Nxd5 {[%clk 0:02:58]} 4. d4 {[%clk 0:02:58]}  Bf5 {[%clk 0:02:58]} 5. c4 {[%clk 0:02:58]}  Nb4 {[%clk 0:02:57]} 6. Na3 {[%clk 0:02:58]}  e6 {[%clk 0:02:58]} 7. Be2 {[%clk 0:02:56]}  Be7 {[%clk 0:02:58]} 8. O-O {[%clk 0:02:56]}  O-O {[%clk 0:02:59]} 9. Be3 {[%clk 0:02:40]}  N8c6 {[%clk 0:02:58]} 10. h3 {[%clk 0:02:38]}  h6 {[%clk 0:02:58]} 11. Qd2 {[%clk 0:02:17]}  Bf6 {[%clk 0:02:49]} 12. Rfd1 {[%clk 0:02:14]}  Qe7 {[%clk 0:02:49]} 13. Nb5 {[%clk 0:01:53]}  Nc2 {[%clk 0:02:48]} 14. Rac1 {[%clk 0:01:52]}  Nxe3 {[%clk 0:02:47]} 15. Qxe3 {[%clk 0:01:47]}  a6 {[%clk 0:02:27]} 16. Nc3 {[%clk 0:01:46]}  Rad8 {[%clk 0:02:26]} 17. Ne4 {[%clk 0:01:43]}  Bxe4 {[%clk 0:02:16]} 18. Qxe4 {[%clk 0:01:43]}  Rd7 {[%clk 0:02:12]} 19. Ne5 {[%clk 0:01:34]}  Bxe5 {[%clk 0:02:05]} 20. dxe5 {[%clk 0:01:35]}  Rfd8 {[%clk 0:02:04]} 21. Kf1 {[%clk 0:01:12]}  Nd4 {[%clk 0:01:52]} 22. Bd3 {[%clk 0:01:07]}  g6 {[%clk 0:01:50]} 23. Qxb7 {[%clk 0:00:59]}  c6 {[%clk 0:01:48]} 24. Qxa6 {[%clk 0:00:57]}  Qg5 {[%clk 0:01:42]} 25. Qa5 {[%clk 0:00:44]}  Qf4 {[%clk 0:01:34]} 26. Qd2 {[%clk 0:00:37]}  Qh2 {[%clk 0:01:32]} 27. Ke1 {[%clk 0:00:32]}  Qg1+ {[%clk 0:00:57]} 28. Bf1 {[%clk 0:00:31]}  Nf3+ {[%clk 0:00:56]} 29. gxf3 {[%clk 0:00:32]}  Rxd2 {[%clk 0:00:56]} 30. Rxd2 {[%clk 0:00:33]}  Rxd2 {[%clk 0:00:57]} 31. Kxd2 {[%clk 0:00:33]}  Qxf2+ {[%clk 0:00:57]} 32. Be2 {[%clk 0:00:30]}  Qd4+ {[%clk 0:00:56]} 33. Kc2 {[%clk 0:00:27]}  Qxe5 {[%clk 0:00:57]} 34. Bd3 {[%clk 0:00:25]}  Qh2+ {[%clk 0:00:54]} 35. Kc3 {[%clk 0:00:24]}  Qxh3 {[%clk 0:00:54]} 36. a4 {[%clk 0:00:25]}  Qxf3 {[%clk 0:00:53]} 37. Ra1 {[%clk 0:00:20]}  c5 {[%clk 0:00:49]} 38. a5 {[%clk 0:00:21]}  Qf6+ {[%clk 0:00:49]} 39. Kc2 {[%clk 0:00:21]}  Qf2+ {[%clk 0:00:45]} 40. Kc3 {[%clk 0:00:22]}  Qd4+ {[%clk 0:00:44]} 41. Kc2 {[%clk 0:00:22]}  e5 {[%clk 0:00:44]} 42. a6 {[%clk 0:00:20]}  e4 {[%clk 0:00:44]} 43. Be2 {[%clk 0:00:20]}  Qe3 {[%clk 0:00:43]} 44. Bf1 {[%clk 0:00:18]}  Qf2+ {[%clk 0:00:39]} 45. Kb3 {[%clk 0:00:17]}  Qf3+ {[%clk 0:00:33]} 46. Kc2 {[%clk 0:00:14]}  Qf2+ {[%clk 0:00:21]} 47. Kc3 {[%clk 0:00:13]}  Qe3+ {[%clk 0:00:20]} 48. Kc2 {[%clk 0:00:13]}  Qf2+ {[%clk 0:00:18]} 1/2-1/2


[Site "https://www.chess.com"]

[Event "Titled Tuesday Blitz July 11 Late 2023"]
[White "Georg, Heinz"]
[Black "Reprintsev, Alexander"]
[WhiteFideId "4607295"]
[BlackFideId "14100541"]
[WhiteElo "2269"]
[BlackElo "2486"]
[Result "1-0"]
[Round "3"]
[TimeControl "180+2"]
[Date "2023.07.11"]
[WhiteClock "0:00:19"]
[BlackClock "0:00:00"]
[Board "163"]

1. c4 {[%clk 0:02:43]}  e5 {[%clk 0:02:59]} 2. Nc3 {[%clk 0:02:41]}  Bb4 {[%clk 0:02:58]} 3. Nf3 {[%clk 0:02:38]}  Bxc3 {[%clk 0:02:58]} 4. bxc3 {[%clk 0:02:38]}  d6 {[%clk 0:02:57]} 5. g3 {[%clk 0:02:35]}  c5 {[%clk 0:02:56]} 6. Bg2 {[%clk 0:02:35]}  Nc6 {[%clk 0:02:55]} 7. O-O {[%clk 0:02:36]}  Nf6 {[%clk 0:02:52]} 8. d4 {[%clk 0:02:35]}  Qc7 {[%clk 0:02:33]} 9. Bg5 {[%clk 0:02:26]}  Ne4 {[%clk 0:01:52]} 10. Qd3 {[%clk 0:01:53]}  Nxg5 {[%clk 0:01:25]} 11. Nxg5 {[%clk 0:01:54]}  cxd4 {[%clk 0:01:11]} 12. Nxh7 {[%clk 0:01:52]}  dxc3 {[%clk 0:01:03]} 13. Ng5 {[%clk 0:01:52]}  Nd4 {[%clk 0:00:59]} 14. e3 {[%clk 0:01:47]}  Bf5 {[%clk 0:00:59]} 15. Ne4 {[%clk 0:01:37]}  Bxe4 {[%clk 0:00:29]} 16. Bxe4 {[%clk 0:01:27]}  f5 {[%clk 0:00:25]} 17. Bd5 {[%clk 0:01:15]}  Nc6 {[%clk 0:00:21]} 18. Qxf5 {[%clk 0:01:12]}  Qe7 {[%clk 0:00:14]} 19. Rac1 {[%clk 0:01:02]}  Qf6 {[%clk 0:00:14]} 20. Qe4 {[%clk 0:00:56]}  Qh6 {[%clk 0:00:11]} 21. Qg2 {[%clk 0:00:39]}  Nb4 {[%clk 0:00:09]} 22. Bxb7 {[%clk 0:00:37]}  Rb8 {[%clk 0:00:09]} 23. Be4 {[%clk 0:00:31]}  c2 {[%clk 0:00:08]} 24. Bxc2 {[%clk 0:00:29]}  Nxc2 {[%clk 0:00:07]} 25. Rxc2 {[%clk 0:00:30]}  O-O {[%clk 0:00:06]} 26. Rd1 {[%clk 0:00:27]}  Rb6 {[%clk 0:00:06]} 27. Qd5+ {[%clk 0:00:26]}  Kh8 {[%clk 0:00:05]} 28. Qe4 {[%clk 0:00:24]}  Ra6 {[%clk 0:00:04]} 29. Qh4 {[%clk 0:00:23]}  Qxh4 {[%clk 0:00:03]} 30. gxh4 {[%clk 0:00:24]}  Rf6 {[%clk 0:00:03]} 31. Kg2 {[%clk 0:00:24]}  Rg6+ {[%clk 0:00:03]} 32. Kf3 {[%clk 0:00:24]}  Rf6+ {[%clk 0:00:03]} 33. Ke4 {[%clk 0:00:24]}  Kh7 {[%clk 0:00:03]} 34. Rd5 {[%clk 0:00:19]}  Kh6 {[%clk 0:00:00]} 35. c5 {[%clk 0:00:19]} 1-0


[Site "https://www.chess.com"]

[Event "Titled Tuesday Blitz July 11 Late 2023"]
[White "Fominykh, Maria"]
[Black "Mei, Austin"]
[WhiteFideId "4142411"]
[BlackFideId "30948479"]
[WhiteElo "2259"]
[BlackElo "2482"]
[Result "0-1"]
[Round "3"]
[TimeControl "180+2"]
[Date "2023.07.11"]
[WhiteClock "0:00:00"]
[BlackClock "0:00:09"]
[Board "164"]

1. d4 {[%clk 0:03:00]}  f5 {[%clk 0:02:59]} 2. Bg5 {[%clk 0:02:59]}  h6 {[%clk 0:02:58]} 3. Bh4 {[%clk 0:02:57]}  g5 {[%clk 0:02:58]} 4. Bg3 {[%clk 0:02:58]}  Nf6 {[%clk 0:02:57]} 5. e3 {[%clk 0:02:58]}  Bg7 {[%clk 0:02:57]} 6. c4 {[%clk 0:02:57]}  d6 {[%clk 0:02:54]} 7. Nc3 {[%clk 0:02:57]}  Nc6 {[%clk 0:02:53]} 8. h4 {[%clk 0:02:53]}  g4 {[%clk 0:02:51]} 9. Nge2 {[%clk 0:02:45]}  e5 {[%clk 0:02:50]} 10. dxe5 {[%clk 0:02:45]}  dxe5 {[%clk 0:02:48]} 11. Qxd8+ {[%clk 0:02:44]}  Kxd8 {[%clk 0:02:49]} 12. O-O-O+ {[%clk 0:02:39]}  Bd7 {[%clk 0:02:49]} 13. h5 {[%clk 0:02:32]}  Ke8 {[%clk 0:02:41]} 14. Nb5 {[%clk 0:01:59]}  Rc8 {[%clk 0:02:37]} 15. Nec3 {[%clk 0:01:59]}  a6 {[%clk 0:02:36]} 16. Na3 {[%clk 0:01:58]}  Rd8 {[%clk 0:02:18]} 17. c5 {[%clk 0:01:29]}  Be6 {[%clk 0:02:15]} 18. Bc4 {[%clk 0:01:27]}  Ke7 {[%clk 0:02:11]} 19. Bh4 {[%clk 0:01:21]}  Kf7 {[%clk 0:01:55]} 20. Bxe6+ {[%clk 0:01:14]}  Kxe6 {[%clk 0:01:55]} 21. Rxd8 {[%clk 0:01:13]}  Rxd8 {[%clk 0:01:49]} 22. Nc4 {[%clk 0:01:12]}  Rd7 {[%clk 0:01:42]} 23. Bg3 {[%clk 0:00:53]}  Nd5 {[%clk 0:01:17]} 24. Na4 {[%clk 0:00:20]}  Ndb4 {[%clk 0:01:11]} 25. a3 {[%clk 0:00:15]}  Nd3+ {[%clk 0:01:11]} 26. Kc2 {[%clk 0:00:15]}  f4 {[%clk 0:01:04]} 27. Bh4 {[%clk 0:00:14]}  e4 {[%clk 0:00:13]} 28. exf4 {[%clk 0:00:09]}  Nxf4 {[%clk 0:00:13]} 29. g3 {[%clk 0:00:08]}  Nd4+ {[%clk 0:00:13]} 30. Kb1 {[%clk 0:00:07]}  Nd3 {[%clk 0:00:12]} 31. Nc3 {[%clk 0:00:06]}  Kf5 {[%clk 0:00:11]} 32. Rf1 {[%clk 0:00:06]}  Nf3 {[%clk 0:00:11]} 33. Ne3+ {[%clk 0:00:06]}  Ke5 {[%clk 0:00:11]} 34. Rd1 {[%clk 0:00:05]}  Nh2 {[%clk 0:00:06]} 35. Rh1 {[%clk 0:00:04]}  Nf3 {[%clk 0:00:05]} 36. Nxg4+ {[%clk 0:00:04]}  Kf5 {[%clk 0:00:06]} 37. Ne3+ {[%clk 0:00:05]}  Ke6 {[%clk 0:00:07]} 38. Rd1 {[%clk 0:00:05]}  Bxc3 {[%clk 0:00:06]} 39. bxc3 {[%clk 0:00:04]}  Nxf2 {[%clk 0:00:07]} 40. Rxd7 {[%clk 0:00:04]}  Kxd7 {[%clk 0:00:08]} 41. Nf5 {[%clk 0:00:04]}  Ng4 {[%clk 0:00:08]} 42. Kc2 {[%clk 0:00:04]}  Ke6 {[%clk 0:00:09]} 43. Nd4+ {[%clk 0:00:04]}  Nxd4+ {[%clk 0:00:08]} 44. cxd4 {[%clk 0:00:05]}  Kd5 {[%clk 0:00:09]} 45. Kc3 {[%clk 0:00:05]}  Ne3 {[%clk 0:00:08]} 46. Bd8 {[%clk 0:00:04]}  c6 {[%clk 0:00:07]} 47. Bc7 {[%clk 0:00:03]}  Nf5 {[%clk 0:00:08]} 48. Bf4 {[%clk 0:00:03]}  Nxd4 {[%clk 0:00:08]} 49. Bxh6 {[%clk 0:00:03]}  Ne2+ {[%clk 0:00:07]} 50. Kd2 {[%clk 0:00:03]}  Nxg3 {[%clk 0:00:08]} 51. Be3 {[%clk 0:00:03]}  Nxh5 {[%clk 0:00:09]} 52. Kc3 {[%clk 0:00:03]}  Ng3 {[%clk 0:00:08]} 53. Kb4 {[%clk 0:00:03]}  Nf5 {[%clk 0:00:09]} 54. Bg1 {[%clk 0:00:02]}  e3 {[%clk 0:00:10]} 55. Kc3 {[%clk 0:00:02]}  Ke4 {[%clk 0:00:10]} 56. Bh2 {[%clk 0:00:01]}  e2 {[%clk 0:00:10]} 57. Kd2 {[%clk 0:00:02]}  Kf3 {[%clk 0:00:10]} 58. Ke1 {[%clk 0:00:00]}  Nd4 {[%clk 0:00:09]} 0-1


[Site "https://www.chess.com"]

[Event "Titled Tuesday Blitz July 11 Late 2023"]
[White "Kohler, Aran"]
[Black "Bouget, Alexandre"]
[WhiteFideId "1002856"]
[BlackFideId "681318"]
[WhiteElo "2232"]
[BlackElo "2415"]
[Result "1-0"]
[Round "3"]
[TimeControl "180+2"]
[Date "2023.07.11"]
[WhiteClock "0:00:13"]
[BlackClock "0:00:01"]
[Board "169"]

1. d4 {[%clk 0:03:00]}  g6 {[%clk 0:02:48]} 2. c3 {[%clk 0:02:58]}  Bg7 {[%clk 0:02:48]} 3. Bg5 {[%clk 0:02:57]}  d6 {[%clk 0:02:42]} 4. e3 {[%clk 0:02:56]}  Nd7 {[%clk 0:02:40]} 5. Nd2 {[%clk 0:02:52]}  c5 {[%clk 0:02:40]} 6. Bd3 {[%clk 0:02:52]}  b6 {[%clk 0:02:39]} 7. Ngf3 {[%clk 0:02:50]}  Bb7 {[%clk 0:02:39]} 8. Qe2 {[%clk 0:02:32]}  Qc7 {[%clk 0:02:35]} 9. h4 {[%clk 0:02:28]}  h6 {[%clk 0:02:34]} 10. Bf4 {[%clk 0:02:25]}  e5 {[%clk 0:02:35]} 11. dxe5 {[%clk 0:02:23]}  dxe5 {[%clk 0:02:34]} 12. Bg3 {[%clk 0:02:23]}  O-O-O {[%clk 0:02:26]} 13. e4 {[%clk 0:02:21]}  Ngf6 {[%clk 0:02:16]} 14. Ba6 {[%clk 0:02:19]}  Nh5 {[%clk 0:02:16]} 15. Bxb7+ {[%clk 0:02:17]}  Kxb7 {[%clk 0:02:16]} 16. O-O {[%clk 0:02:14]}  f5 {[%clk 0:02:00]} 17. Nc4 {[%clk 0:01:59]}  f4 {[%clk 0:01:53]} 18. Bh2 {[%clk 0:01:56]}  Bf6 {[%clk 0:01:51]} 19. a4 {[%clk 0:01:52]}  Ng7 {[%clk 0:01:47]} 20. g3 {[%clk 0:01:48]}  g5 {[%clk 0:01:46]} 21. Rfd1 {[%clk 0:01:40]}  g4 {[%clk 0:01:31]} 22. Nfd2 {[%clk 0:01:35]}  f3 {[%clk 0:01:31]} 23. Qf1 {[%clk 0:01:35]}  Be7 {[%clk 0:01:19]} 24. Ne3 {[%clk 0:01:36]}  Nf6 {[%clk 0:01:16]} 25. a5 {[%clk 0:01:32]}  Kb8 {[%clk 0:01:07]} 26. axb6 {[%clk 0:01:32]}  axb6 {[%clk 0:01:08]} 27. Qa6 {[%clk 0:01:20]}  Qb7 {[%clk 0:01:07]} 28. Qa2 {[%clk 0:01:20]}  Bd6 {[%clk 0:00:27]} 29. Nd5 {[%clk 0:01:11]}  Nxd5 {[%clk 0:00:25]} 30. exd5 {[%clk 0:01:10]}  Bc7 {[%clk 0:00:21]} 31. c4 {[%clk 0:01:08]}  Nf5 {[%clk 0:00:20]} 32. Ne4 {[%clk 0:01:09]}  Nd4 {[%clk 0:00:20]} 33. Kh1 {[%clk 0:01:07]}  Rd7 {[%clk 0:00:15]} 34. Rd3 {[%clk 0:00:40]}  Nc2 {[%clk 0:00:15]} 35. Ra3 {[%clk 0:00:30]}  Nxa1 {[%clk 0:00:13]} 36. Qxa1 {[%clk 0:00:30]}  Bd8 {[%clk 0:00:11]} 37. Rb3 {[%clk 0:00:27]}  Rhh7 {[%clk 0:00:10]} 38. Nxc5 {[%clk 0:00:27]}  bxc5 {[%clk 0:00:08]} 39. Rxb7+ {[%clk 0:00:26]}  Rxb7 {[%clk 0:00:09]} 40. b4 {[%clk 0:00:20]}  Bf6 {[%clk 0:00:07]} 41. bxc5 {[%clk 0:00:19]}  Ra7 {[%clk 0:00:07]} 42. Qe1 {[%clk 0:00:15]}  Rhb7 {[%clk 0:00:07]} 43. Bg1 {[%clk 0:00:14]}  Rb2 {[%clk 0:00:06]} 44. c6 {[%clk 0:00:14]}  Rba2 {[%clk 0:00:06]} 45. Qe4 {[%clk 0:00:11]}  Ra1 {[%clk 0:00:05]} 46. Qg6 {[%clk 0:00:11]}  Bd8 {[%clk 0:00:05]} 47. Qe8 {[%clk 0:00:12]}  Kc8 {[%clk 0:00:04]} 48. Qe6+ {[%clk 0:00:11]}  Kb8 {[%clk 0:00:03]} 49. Qxe5+ {[%clk 0:00:11]}  Bc7 {[%clk 0:00:02]} 50. Qe8+ {[%clk 0:00:12]}  Bd8 {[%clk 0:00:01]} 51. Qxd8# {[%clk 0:00:13]} 1-0


[Site "https://www.chess.com"]